bitfinex/quotes_ETHUSD_20250623
["timestamp","ask_amount","ask_price","bid_price","bid_amount"]
[1750639730590,0.8003,2259.2,2258.6,7.99844518]
[1750639730767,0.82393,2259.1,2258.7,10.0]
[1750639730969,0.82393,2259.1,2258.6,7.99844518]
[1750639731288,0.8003,2259.2,2258.6,8.84574518]
[1750639731489,0.8003,2259.2,2259.0,10.0]
[1750639731696,8.298,2259.4,2259.0,10.0]
[1750639732098,8.2383,2259.4,2258.9,8.05994518]
[1750639732264,8.2383,2259.4,2259.0,0.04426262]
[1750639732459,8.2383,2259.4,2258.9,7.99844518]
[1750639732660,8.2383,2259.4,2258.9,9.9928985]
[1750639733783,8.2383,2259.4,2259.0,10.0]
[1750639734402,0.005,2259.5,2259.1,0.04426534]
[1750639734717,1.0259594,2261.5,2259.8,0.0615]
[1750639735002,0.2261594,2261.5,2261.4,18.05994518]
[1750639735219,0.2261594,2261.5,2261.4,19.48491173]
[1750639735393,0.8595,2263.0,2261.5,10.009]
[1750639735577,0.7998,2263.0,2262.2,10.8013]
[1750639735780,11.5015,2263.4,2262.5,7.99844518]
[1750639735988,11.5015,2263.4,2262.5,8.43695534]
[1750639736188,11.5015,2263.4,2262.5,0.43851016]
[1750639736401,10.311,2263.3,2262.4,7.99844518]
[1750639736601,0.0597,2263.2,2261.8,8.79974518]
[1750639736805,10.311,2263.3,2261.9,0.0442001]
[1750639736806,0.0597,2263.0,2261.9,0.0442001]
[1750639737099,10.311,2263.3,2261.9,0.0442001]
[1750639737100,0.0597,2262.8,2261.9,0.0442001]
[1750639737304,0.7998,2262.5,2261.4,1.329596]
[1750639737503,0.0597,2262.4,2261.4,1.329596]
[1750639737800,0.0597,2262.0,2261.4,1.78291811]
[1750639738030,0.0597,2261.8,2260.6,0.8013]
[1750639738192,0.0597,2261.8,2260.9,1.330032]
[1750639738193,0.0597,2261.6,2260.9,1.330032]
[1750639738513,0.0597,2261.4,2260.2,0.7783]
[1750639738820,0.0597,2261.4,2260.6,9.32867718]
[1750639738982,0.0597,2261.4,2260.6,7.99844518]
[1750639739184,0.0597,2261.4,2260.6,1.330235]
[1750639739414,0.0597,2261.3,2260.2,0.44106059]
[1750639739713,4.6417432,2261.5,2261.2,7.99844518]
[1750639739900,1.1982432,2261.5,2261.3,10.0]
[1750639740211,1.1982432,2261.5,2261.4,1.80074452]
[1750639740795,1.1982432,2261.5,2261.4,1.85396014]
[1750639741119,1.1982432,2261.5,2261.4,16.23178396]
[1750639741422,1.1982432,2261.5,2261.4,11.80974452]
[1750639741721,1.1982432,2261.5,2261.4,16.23178396]
[1750639742012,1.1982432,2261.5,2261.4,11.80974452]
[1750639742420,1.1982432,2261.5,2261.4,11.80074452]
[1750639742597,1.1982432,2261.5,2261.4,19.8081897]
[1750639743405,1.1982432,2261.5,2261.4,24.23022914]
[1750639743725,0.0597,2262.9,2261.7,0.009]
[1750639743905,2.653,2262.8,2262.5,7.99844518]
[1750639744225,2.653,2262.8,2262.5,0.44697361]
[1750639744423,2.653,2262.8,2262.3,0.04420054]
[1750639744724,2.653,2262.9,2262.5,7.99844518]
[1750639744924,2.653,2262.9,2262.6,0.8440348]
[1750639745294,0.2813206,2263.7,2262.8,7.99844518]
[1750639745494,2.652,2263.6,2263.1,7.99844518]
[1750639745832,0.7819,2263.4,2262.6,8.7982897]
[1750639746014,0.7819,2263.4,2262.7,10.0]
[1750639746218,0.7819,2263.4,2262.9,7.99844518]
[1750639746219,2.652,2263.3,2262.9,7.99844518]
[1750639746395,0.2216206,2263.7,2263.3,10.0]
[1750639746595,0.2216206,2263.7,2263.5,7.99844518]
[1750639746798,0.2216206,2263.7,2263.3,8.77074518]
[1750639746996,1.0657206,2263.7,2263.0,10.0]
[1750639747226,0.0597,2264.7,2263.6,10.0]
[1750639747527,0.0597,2264.7,2263.1,0.04418354]
[1750639747528,0.7844,2264.3,2263.1,1.32821]
[1750639747704,0.0597,2263.8,2263.1,1.32821]
[1750639747906,0.0597,2263.5,2262.4,7.99844518]
[1750639748117,0.0597,2263.3,2262.5,1.329118]
[1750639748299,10.4727,2263.2,2262.5,1.78286461]
[1750639748499,10.4727,2263.2,2262.5,0.45374661]
[1750639748724,0.0597,2263.0,2262.6,1.329048]
[1750639749030,0.8209,2263.1,2262.5,0.4389551]
[1750639749196,2.652,2263.0,2262.6,1.329048]
[1750639749609,0.8209,2263.1,2262.7,7.99844518]
[1750639749809,2.652,2263.0,2262.7,7.99844518]
[1750639750231,2.7117,2263.0,2262.6,1.329048]
[1750639750526,0.0597,2262.9,2262.6,1.329048]
[1750639750700,0.0597,2262.9,2262.5,0.43590219]
[1750639750899,3.83439,2263.0,2262.2,7.99844518]
[1750639751233,0.0597,2262.9,2261.8,7.99844518]
[1750639751396,10.396,2262.8,2262.1,7.99844518]
[1750639751599,10.396,2262.8,2262.4,7.99844518]
[1750639751801,2.651,2262.9,2262.7,7.99844518]
[1750639752296,2.651,2262.9,2262.5,7.99844518]
[1750639752498,2.651,2262.9,2262.6,0.04419226]
[1750639752826,10.389,2263.0,2262.6,0.04419226]
[1750639753030,10.389,2263.0,2262.5,8.44452373]
[1750639753230,10.389,2263.0,2262.6,0.04418976]
[1750639753531,11.50999,2263.0,2262.5,0.44607855]
[1750639753737,0.0619,2262.7,2262.2,1.329095]
[1750639753935,0.0619,2262.4,2261.3,9.22838359]
[1750639754105,10.382,2262.3,2261.8,1.329548]
[1750639754300,0.0619,2262.2,2261.8,1.329548]
[1750639754500,10.38,2262.1,2261.9,7.99844518]
[1750639754703,1.15023,2262.4,2261.9,7.99844518]
[1750639755028,0.0619,2262.3,2261.9,7.99844518]
[1750639755334,11.1914,2262.5,2262.2,7.99844518]
[1750639755533,11.1914,2262.5,2261.8,1.329548]
[1750639755534,0.0619,2262.4,2261.8,1.329548]
[1750639756632,0.0619,2262.0,2261.3,0.45203841]
[1750639756831,0.0619,2262.0,2261.3,1.329649]
[1750639757032,0.0619,2262.0,2261.0,7.99844518]
[1750639757337,0.0619,2261.8,2261.0,2.12974052]
[1750639757532,0.0619,2261.6,2260.7,7.99844518]
[1750639757830,10.276,2261.7,2260.7,1.77858601]
[1750639757831,0.0619,2261.4,2260.7,1.77858601]
[1750639758056,0.0619,2261.4,2260.7,0.44851901]
[1750639758240,0.0619,2261.4,2260.3,1.330356]
[1750639758753,0.0619,2261.4,2260.4,7.99844518]
[1750639759066,10.273,2261.3,2260.5,0.93288012]
[1750639759274,0.0619,2261.2,2260.5,0.93288012]
[1750639759752,0.0619,2261.2,2260.3,1.330356]
[1750639759965,0.8159,2261.1,2260.3,1.330356]
[1750639760342,0.0619,2261.0,2260.3,1.76550621]
[1750639760526,0.0619,2261.0,2260.3,0.43515021]
[1750639760722,0.8778,2260.8,2260.1,18.0]
[1750639760935,0.8778,2260.8,2258.0,4.42865011]
[1750639760936,0.8159,2260.5,2258.9,0.0566]
[1750639761232,1.15027,2261.4,2259.3,10.0]
[1750639761233,0.8159,2260.3,2259.3,10.0]
[1750639761560,10.264,2260.2,2259.3,10.0]
[1750639761727,0.0619,2260.1,2259.2,9.32949818]
[1750639762154,0.8159,2260.3,2259.3,10.0]
[1750639762359,10.261,2260.2,2259.4,0.04425505]
[1750639762523,10.258,2260.1,2259.5,7.99844518]
[1750639763220,0.8778,2260.3,2259.5,7.99844518]
[1750639763427,0.8159,2260.3,2259.8,7.99844518]
[1750639763649,0.8159,2260.3,2259.5,0.7665]
[1750639763848,0.8159,2260.3,2259.6,10.04424711]
[1750639764050,0.8159,2260.3,2259.6,10.5399607]
[1750639764227,0.8159,2260.3,2259.5,10.7665]
[1750639764740,7.696,2260.2,2259.5,10.8231]
[1750639765064,10.628,2260.6,2259.8,10.02524617]
[1750639765245,10.628,2260.6,2259.9,1.00252462]
[1750639765562,10.628,2260.6,2259.8,10.08184617]
[1750639765751,0.0619,2260.5,2259.5,10.79174617]
[1750639766267,10.628,2260.6,2259.3,10.0]
[1750639766268,0.0619,2260.3,2259.3,10.0]
[1750639766557,2.56,2260.2,2259.3,10.0]
[1750639766740,7.686,2260.1,2259.2,1.331053]
[1750639766928,1.0246,2260.0,2259.2,1.331053]
[1750639767333,0.7643,2259.9,2259.2,1.331053]
[1750639768551,0.7643,2259.9,2259.2,11.35629917]
[1750639768751,7.681,2259.8,2259.2,11.35629917]
[1750639769949,8.4373,2259.9,2259.2,11.35629917]
[1750639770135,9.54332,2259.9,2259.2,11.35629917]
[1750639770642,9.54332,2259.9,2259.2,1.331053]
[1750639771773,0.0619,2259.8,2259.2,1.331053]
[1750639771978,0.8006,2259.7,2259.2,1.331053]
[1750639772137,0.0619,2259.6,2259.2,1.331053]
[1750639772545,8.77902,2259.9,2258.7,0.44669884]
[1750639772546,0.8006,2259.3,2258.7,0.44669884]
[1750639772748,0.8006,2259.3,2258.7,1.331478]
[1750639772749,0.0619,2259.1,2258.7,1.331478]
[1750639772935,0.0619,2259.0,2257.9,0.767]
[1750639773135,0.785,2258.9,2257.8,0.0566]
[1750639773467,0.8248,2259.1,2258.6,10.02524617]
[1750639773663,0.8867,2259.5,2258.7,0.10087075]
[1750639773973,0.8248,2259.5,2258.7,0.10087075]
[1750639774142,0.8248,2259.5,2258.7,1.15836949]
[1750639774338,0.8248,2259.5,2258.7,2.48954549]
[1750639774542,0.8248,2259.5,2259.0,10.02524617]
[1750639774775,10.218,2259.7,2259.1,0.04426323]
[1750639774776,2.6229,2259.7,2259.1,0.04426323]
[1750639774962,2.6229,2259.7,2258.7,1.331176]
[1750639775175,0.7655,2259.4,2258.7,1.331176]
[1750639775469,8.4195,2259.4,2258.7,1.331176]
[1750639777571,2.5309,2259.8,2258.9,10.02524617]
[1750639777937,2.5309,2259.8,2258.8,0.7553]
[1750639777938,0.0619,2259.8,2258.8,0.7553]
[1750639778150,10.112,2259.7,2258.8,0.79956574]
[1750639778473,10.112,2259.7,2258.8,3.02144584]
[1750639778474,11.12939,2259.7,2258.8,3.02144584]
[1750639778877,11.12939,2259.7,2258.8,0.7553]
[1750639779885,0.7957,2259.5,2258.7,1.387776]
[1750639780033,0.8576,2259.5,2258.7,1.331176]
[1750639780674,0.8576,2259.5,2258.7,1.37544248]
[1750639780838,0.8576,2259.5,2258.7,1.331176]
[1750639781034,2.055899,2259.5,2258.7,1.331176]
[1750639781539,0.8234,2259.4,2258.7,1.331176]
[1750639781739,0.0619,2259.3,2258.6,0.4488705]
[1750639782073,0.0619,2259.1,2258.5,1.331176]
[1750639782381,10.099,2259.0,2258.5,1.331176]
[1750639782552,0.0619,2258.8,2258.1,10.46921676]
[1750639782732,0.0619,2258.8,2258.2,1.331602]
[1750639783299,0.0619,2258.8,2257.7,0.0566]
[1750639783300,0.058,2258.4,2257.2,0.7725]
[1750639783458,0.058,2257.9,2257.1,1.5532226]
[1750639783659,0.8885,2257.6,2257.1,0.2216206]
[1750639783853,0.058,2257.3,2257.1,0.2216206]
[1750639784086,0.8123,2257.2,2257.1,0.1799206]
[1750639784361,0.7543,2257.0,2255.5,0.0571]
[1750639784557,0.058,2256.7,2255.8,1.332682]
[1750639784757,0.799,2256.4,2255.2,0.0571]
[1750639785068,10.092,2256.3,2255.4,1.332682]
[1750639785268,1.0949,2256.3,2255.4,1.332682]
[1750639785474,10.089,2256.2,2255.4,1.37701408]
[1750639785695,10.089,2256.1,2255.5,0.10143208]
[1750639785862,10.089,2256.1,2255.5,0.50673007]
[1750639786200,10.089,2256.1,2255.5,0.0571]
[1750639786758,10.089,2256.1,2255.4,1.332682]
[1750639787067,10.089,2256.1,2255.5,0.04433446]
[1750639787267,10.089,2256.1,2255.5,0.04433226]
[1750639787505,7.613,2256.0,2255.5,0.4527793]
[1750639787670,7.613,2256.0,2255.5,0.5098793]
[1750639787862,10.083,2255.9,2255.5,0.0571]
[1750639788208,2.472,2255.8,2255.3,0.0571]
[1750639788410,2.472,2255.8,2255.4,10.0]
[1750639788564,2.472,2255.8,2255.6,0.0571]
[1750639788769,2.472,2255.8,2255.4,10.0571]
[1750639789322,2.472,2255.8,2255.4,10.49572994]
[1750639789668,2.472,2255.8,2255.4,0.43862994]
[1750639789920,0.8213,2255.7,2255.2,1.333271]
[1750639790071,0.8793,2255.7,2254.8,0.2787206]
[1750639790274,0.8793,2255.7,2255.2,18.0]
[1750639790591,0.058,2255.6,2254.8,0.73295526]
[1750639790792,0.058,2255.6,2254.8,0.2216206]
[1750639790793,0.49395,2255.6,2254.8,0.2216206]
[1750639790989,10.074,2255.5,2254.9,0.04434541]
[1750639791291,10.074,2255.5,2254.9,10.04434541]
[1750639791490,0.8213,2255.7,2254.9,10.0]
[1750639791830,10.071,2256.0,2255.6,0.0571]
[1750639792118,11.15923,2256.0,2255.1,0.8183]
[1750639792472,11.15923,2256.0,2255.2,0.04433656]
[1750639792670,2.472,2256.0,2255.3,10.0]
[1750639792916,10.066,2256.0,2255.6,0.0571]
[1750639793068,0.8213,2256.2,2255.5,8.014774]
[1750639793274,0.8213,2256.2,2255.9,0.0571]
[1750639793523,10.064,2256.3,2255.8,8.014774]
[1750639793676,11.4633,2256.6,2256.1,8.014774]
[1750639794007,10.065,2256.5,2256.2,0.0571]
[1750639794205,10.065,2256.5,2255.9,2.1342334]
[1750639794407,10.065,2256.5,2255.9,11.332756]
[1750639794598,10.065,2256.5,2255.6,0.0571]
[1750639795203,10.065,2256.5,2255.6,1.390211]
[1750639795413,0.8213,2256.3,2255.2,0.0571]
[1750639795571,0.8213,2256.3,2255.2,8.071874]
[1750639795774,7.584,2256.2,2255.3,1.37763905]
[1750639796228,0.8116,2256.1,2255.3,1.333307]
[1750639796400,2.383,2256.0,2255.3,1.333307]
[1750639797187,2.383,2256.0,2255.4,0.04433555]
[1750639797386,3.46086,2256.0,2255.3,1.333307]
[1750639797610,3.46086,2256.0,2255.1,10.0]
[1750639797814,3.46086,2256.0,2255.2,0.04434013]
[1750639798200,3.46086,2256.0,2255.1,11.333443]
[1750639798574,0.058,2255.8,2254.8,10.66639852]
[1750639798778,0.058,2255.8,2255.0,1.333514]
[1750639798779,7.578,2255.7,2255.0,1.333514]
[1750639798988,0.7729,2255.6,2254.8,0.66639852]
[1750639799187,2.383,2255.5,2254.8,0.66639852]
[1750639799716,13.037,2255.5,2254.8,0.2216206]
[1750639799901,13.095,2255.5,2254.8,0.2216206]
[1750639800106,0.8251,2255.3,2254.8,0.2216206]
[1750639800282,7.572,2255.2,2254.8,0.2216206]
[1750639800483,7.63,2255.2,2254.8,0.2216206]
[1750639800775,7.572,2255.2,2254.8,0.2216206]
[1750639801195,0.058,2255.0,2254.8,0.2216206]
[1750639801524,0.058,2255.0,2253.8,10.28353068]
[1750639801525,0.8491,2254.7,2253.8,1.333882]
[1750639801683,8.3846,2254.6,2253.8,1.333882]
[1750639801882,8.3846,2254.6,2253.4,0.0571]
[1750639802205,7.568,2254.6,2253.4,11.391546]
[1750639802378,7.568,2254.6,2253.4,10.0571]
[1750639802379,1.51455,2254.5,2253.4,10.0571]
[1750639802577,0.7545,2254.3,2253.4,11.7715326]
[1750639802775,0.7545,2254.3,2253.4,1.7715326]
[1750639803185,0.0325,2254.2,2252.9,0.778]
[1750639803437,0.7591,2254.0,2253.2,1.334516]
[1750639803636,0.7591,2254.0,2252.9,0.37053691]
[1750639803637,3.21671,2253.9,2252.9,0.37053691]
[1750639803917,0.8534,2253.8,2252.9,1.70505291]
[1750639804128,0.0325,2253.7,2252.9,1.70505291]
[1750639804435,0.8209,2253.6,2252.9,0.37053691]
[1750639804612,9.948,2253.5,2252.7,0.0443877]
[1750639804937,1.07689,2253.4,2252.6,0.2216206]
[1750639805581,1.07689,2253.4,2253.2,10.06454676]
[1750639805582,2.384,2253.4,2253.2,10.06454676]
[1750639805783,2.384,2253.4,2252.6,0.26600834]
[1750639805784,2.384,2253.4,2252.6,10.28616736]
[1750639805981,2.384,2253.4,2252.7,10.0]
[1750639806413,0.7614,2254.3,2253.1,10.0571]
[1750639806612,9.949,2254.2,2253.1,10.0571]
[1750639806817,1.07104,2254.1,2253.1,10.0571]
[1750639807189,0.8311,2254.0,2252.6,10.2787206]
[1750639807612,0.7986,2253.7,2252.6,0.2787206]
[1750639807918,0.55,2253.9,2252.6,0.2787206]
[1750639807919,0.7986,2253.4,2252.6,0.2216206]
[1750639808087,10.66,2253.3,2252.6,0.2216206]
[1750639808290,1.8684,2253.2,2252.6,0.2216206]
[1750639808614,9.969,2253.1,2252.6,0.2216206]
[1750639808820,9.972,2253.0,2252.7,0.0571]
[1750639809188,10.66,2253.3,2252.7,10.06454676]
[1750639809383,2.385,2253.4,2253.1,10.06454676]
[1750639809607,9.972,2253.5,2253.2,0.0571]
[1750639809982,9.972,2253.5,2253.1,10.06454676]
[1750639810187,11.4944,2253.9,2253.2,0.10147773]
[1750639810415,9.972,2253.8,2253.2,10.10147773]
[1750639810605,9.972,2253.8,2253.2,10.0571]
[1750639811317,9.972,2253.8,2253.2,0.0571]
[1750639811518,9.972,2253.8,2252.8,10.0571]
[1750639811723,2.14664,2253.7,2252.8,12.22850674]
[1750639812205,9.97,2253.6,2252.8,12.22850674]
[1750639812521,2.385,2253.5,2253.3,0.0571]
[1750639812822,2.385,2253.5,2253.4,0.0571]
[1750639815216,2.385,2253.5,2253.4,10.0571]
[1750639816303,2.385,2253.5,2253.4,0.0571]
[1750639817639,2.385,2254.3,2253.5,0.0567]
[1750639817795,9.963,2254.3,2253.8,10.0]
[1750639819027,10.9593,2254.3,2253.4,10.06454676]
[1750639819191,10.9593,2254.3,2253.5,10.0]
[1750639819525,0.7727,2254.6,2253.8,10.06454676]
[1750639819526,9.963,2254.2,2253.8,10.06454676]
[1750639819828,9.963,2254.2,2253.9,0.04436171]
[1750639820024,9.963,2254.2,2254.1,0.0567]
[1750639820727,9.963,2254.2,2254.1,10.0567]
[1750639821836,9.963,2254.2,2254.1,10.0]
[1750639822223,9.963,2254.2,2254.1,10.0567]
[1750639822748,7.576,2254.2,2254.1,10.0567]
[1750639823062,7.576,2254.2,2253.7,8.08112953]
[1750639823206,8.5721,2254.2,2253.7,8.08112953]
[1750639823407,8.5721,2254.2,2253.7,8.02442953]
[1750639823709,8.5721,2254.2,2253.7,8.08112953]
[1750639825037,8.5721,2254.2,2253.4,10.0]
[1750639825038,0.7528,2254.1,2253.4,10.0]
[1750639825237,1.84851,2254.1,2253.4,10.44145676]
[1750639825805,1.84851,2254.1,2253.4,0.44145676]
[1750639826011,1.84851,2254.1,2253.0,8.85312953]
[1750639826012,1.88541,2254.1,2253.0,8.85312953]
[1750639826346,9.918,2254.0,2253.4,10.0]
[1750639826554,0.0369,2253.9,2253.1,11.334517]
[1750639826735,11.4178,2253.8,2253.0,8.08112953]
[1750639826937,11.4178,2253.8,2253.0,8.53416039]
[1750639827133,11.4178,2253.8,2253.1,10.0]
[1750639827338,1.14547,2253.7,2253.0,8.53416039]
[1750639827536,7.565,2253.6,2253.0,8.53416039]
[1750639827739,2.352,2253.5,2253.0,8.47746039]
[1750639827939,2.352,2253.5,2253.1,10.0]
[1750639829057,0.7587,2253.4,2252.8,1.334671]
[1750639829230,1.7504,2253.4,2252.6,0.2216206]
[1750639829430,1.7504,2253.4,2252.9,10.0567]
[1750639829767,11.4237,2253.8,2253.2,10.0567]
[1750639829961,9.916,2253.7,2253.2,10.0567]
[1750639830725,0.7587,2253.6,2252.6,0.2216206]
[1750639831035,0.7587,2253.2,2252.6,0.2216206]
[1750639831242,9.916,2253.1,2252.6,0.2216206]
[1750639831444,0.7956,2252.8,2252.6,0.2216206]
[1750639831653,7.567,2252.7,2252.6,0.2216206]
[1750639831853,7.6039,2252.7,2252.6,0.2216206]
[1750639832050,19.0276,2252.7,2252.6,0.2216206]
[1750639832250,19.5776,2252.7,2252.6,0.2216206]
[1750639832439,21.53536,2252.7,2252.6,0.2216206]
[1750639832925,20.98536,2252.7,2252.6,0.2216206]
[1750639833344,21.53536,2252.7,2252.6,0.2216206]
[1750639833751,31.53536,2252.7,2252.6,0.2216206]
[1750639833948,21.53536,2252.7,2252.6,0.2216206]
[1750639834979,31.53536,2252.7,2252.6,0.2216206]
[1750639837151,0.5869,2252.4,2251.6,1.0]
[1750639837352,0.7794,2252.1,2251.6,1.0]
[1750639837590,10.0,2251.9,2251.6,1.0]
[1750639837792,0.0369,2251.7,2251.6,1.0]
[1750639837952,7.5999,2251.7,2251.6,1.0]
[1750639838468,0.7794,2251.6,2250.7,8.53333429]
[1750639838793,10.669,2251.5,2251.0,8.02442953]
[1750639838958,10.669,2251.5,2251.3,8.02442953]
[1750639838959,9.916,2251.4,2251.3,8.02442953]
[1750639839159,9.916,2251.4,2251.3,8.08112953]
[1750639839357,9.916,2251.4,2251.3,18.08112953]
[1750639840586,9.916,2251.4,2251.3,10.0567]
[1750639842157,9.916,2251.4,2250.7,1.22726672]
[1750639842359,9.916,2251.4,2251.1,0.0567]
[1750639842575,0.8095,2251.3,2251.1,0.04441691]
[1750639842778,0.8095,2251.8,2250.9,0.0567]
[1750639842961,0.8668,2251.6,2250.9,10.0]
[1750639843183,0.8668,2251.6,2250.3,0.7836]
[1750639843386,0.0589,2251.4,2250.3,0.7836]
[1750639843586,8.3473,2251.3,2250.3,0.7836]
[1750639843892,0.7813,2251.0,2250.0,0.822]
[1750639844068,0.0589,2250.7,2249.7,0.822]
[1750639844257,0.0589,2250.5,2249.7,0.822]
[1750639844464,10.7602,2250.5,2249.4,0.822]
[1750639844697,11.77732,2250.5,2249.5,8.06887685]
[1750639844894,10.7013,2250.5,2249.9,0.057]
[1750639845190,10.7043,2250.5,2249.9,0.057]
[1750639845497,10.7043,2250.5,2249.9,10.057]
[1750639845997,0.7813,2250.9,2250.2,0.44346084]
[1750639846198,9.921,2250.8,2250.2,10.0]
[1750639846583,9.921,2250.8,2250.5,0.057]
[1750639846584,7.567,2250.7,2250.5,0.057]
[1750639846784,7.567,2250.7,2250.2,10.0]
[1750639847374,8.63723,2250.7,2250.2,10.0]
[1750639848310,8.63723,2250.7,2250.1,0.057]
[1750639848895,8.69613,2250.7,2249.9,10.0]
[1750639849099,0.0589,2250.6,2249.8,0.057]
[1750639849400,8.63723,2250.7,2249.9,10.44596728]
[1750639850083,8.69613,2250.7,2249.9,10.44596728]
[1750639850299,1.105013,2250.6,2249.9,10.44596728]
[1750639850503,1.163913,2250.6,2249.9,10.0]
[1750639850807,0.8117,2250.5,2249.8,0.057]
[1750639850993,0.7528,2250.5,2249.8,0.057]
[1750639851197,0.7528,2250.5,2249.8,10.057]
[1750639851374,9.92,2250.5,2250.2,0.057]
[1750639851571,9.92,2250.5,2250.0,8.02442953]
[1750639851805,9.92,2250.5,2250.4,0.2786206]
[1750639852506,9.92,2250.5,2250.4,0.2216206]
[1750639853912,10.912,2250.5,2250.4,0.2216206]
[1750639854514,10.9709,2250.5,2250.4,0.2216206]
[1750639856014,12.2883,2250.5,2250.4,0.2216206]
[1750639856813,22.2883,2250.5,2250.4,0.2216206]
[1750639857512,12.23026911,2250.5,2250.4,0.2216206]
[1750639857680,3.0944,2250.5,2250.4,0.2216206]
[1750639857880,9.881,2250.5,2250.4,0.2216206]
[1750639858822,10.4899,2250.5,2250.4,0.2216206]
[1750639858984,11.2902,2250.5,2250.4,0.2216206]
[1750639859320,10.6793,2250.5,2250.4,0.2216206]
[1750639860316,10.673,2251.2,2250.4,0.2786206]
[1750639860317,0.7553,2250.9,2250.4,0.2786206]
[1750639860487,9.883,2250.8,2250.6,0.057]
[1750639860690,7.556,2250.7,2250.6,0.057]
[1750639860919,7.556,2250.7,2250.4,10.2216206]
[1750639861089,2.327,2250.8,2250.6,8.02442953]
[1750639861290,2.327,2251.4,2250.9,0.8093]
[1750639861494,2.327,2251.4,2251.1,8.02442953]
[1750639861801,2.327,2251.4,2251.3,0.057]
[1750639862198,9.885,2251.4,2251.3,0.057]
[1750639862800,2.327,2251.8,2251.5,0.057]
[1750639863004,7.556,2251.7,2251.5,8.02442953]
[1750639863224,2.327,2252.2,2251.7,0.057]
[1750639863424,7.556,2252.1,2251.8,0.057]
[1750639863611,7.556,2252.1,2251.6,0.057]
[1750639864015,10.7804,2252.6,2251.6,0.057]
[1750639864318,11.163706,2252.5,2251.5,0.057]
[1750639865025,0.0589,2252.3,2251.4,0.8223]
[1750639865229,0.55,2251.9,2251.3,0.4447471]
[1750639865412,9.88,2251.8,2251.3,0.4447471]
[1750639865616,10.869,2251.7,2251.1,0.8296]
[1750639865817,2.327,2251.6,2251.1,0.8296]
[1750639866219,2.327,2251.6,2250.8,0.792]
[1750639866220,3.1459,2251.6,2250.8,0.792]
[1750639866426,3.1459,2251.6,2250.7,0.057]
[1750639866614,0.0589,2251.4,2250.5,0.792]
[1750639866813,7.55,2251.3,2250.5,0.792]
[1750639867398,0.55,2251.2,2250.4,0.2216206]
[1750639867703,3.1459,2251.1,2250.4,0.2216206]
[1750639868036,0.0589,2250.9,2250.4,0.2216206]
[1750639868194,0.55,2250.7,2250.4,0.2216206]
[1750639868396,0.0589,2250.5,2250.4,0.2216206]
[1750639868751,10.6089,2250.5,2250.4,0.2216206]
[1750639868917,11.02242242,2250.5,2250.4,0.2216206]
[1750639869110,11.02245197,2250.5,2250.4,0.2216206]
[1750639869421,19.34605698,2250.5,2250.4,0.2216206]
[1750639869624,22.13146391,2250.5,2250.4,0.2216206]
[1750639870008,23.90846391,2250.5,2250.4,0.2216206]
[1750639870230,24.45846391,2250.5,2250.4,0.2216206]
[1750639871760,23.84956391,2250.5,2250.4,0.2216206]
[1750639872749,23.90846391,2250.5,2250.4,0.2216206]
[1750639872956,24.45846391,2250.5,2250.4,0.2216206]
[1750639873321,19.869,2250.5,2250.4,0.2216206]
[1750639873547,9.869,2250.5,2250.4,0.2216206]
[1750639876068,2.327,2250.5,2250.4,0.2216206]
[1750639876274,2.3867,2250.5,2250.4,0.2216206]
[1750639876553,2.327,2250.5,2250.4,0.2216206]
[1750639876751,3.6278,2250.5,2250.4,0.2216206]
[1750639876968,2.327,2250.5,2250.4,0.2216206]
[1750639877118,9.871,2250.5,2250.4,0.2216206]
[1750639879040,9.9307,2250.5,2250.4,0.2216206]
[1750639879247,10.89435256,2250.5,2250.4,0.2216206]
[1750639879454,10.28451587,2250.5,2250.4,0.2216206]
[1750639879675,11.96755159,2250.5,2250.4,0.2216206]
[1750639880261,7.54,2250.7,2250.4,0.9985206]
[1750639880590,7.542,2250.6,2250.5,0.0579]
[1750639880743,7.542,2250.6,2250.4,0.2216206]
[1750639881276,0.8303,2250.5,2250.4,0.2216206]
[1750639881462,0.8432,2250.5,2250.4,0.2216206]
[1750639881794,7.539,2250.5,2250.4,0.2216206]
[1750639882083,7.539,2250.5,2250.4,0.2795206]
[1750639883375,9.867,2250.5,2250.4,0.2795206]
[1750639884179,2.328,2250.5,2250.4,8.30395013]
[1750639884400,2.328,2250.5,2250.4,10.2216206]
[1750639885478,2.328,2250.5,2250.4,0.2795206]
[1750639885877,2.328,2250.5,2250.4,0.2216206]
[1750639886748,9.862,2250.5,2250.4,0.2216206]
[1750639889972,10.752,2250.5,2250.4,0.2216206]
[1750639890186,11.8272,2250.5,2250.4,0.2216206]
[1750639891090,10.9372,2250.5,2250.4,0.2216206]
[1750639891251,9.862,2250.5,2250.4,0.2216206]
[1750639893610,10.4717,2250.5,2250.4,0.2216206]
[1750639893908,21.71696538,2250.5,2250.4,0.2216206]
[1750639894054,21.71705393,2250.5,2250.4,0.2216206]
[1750639894454,21.71707826,2250.5,2250.4,0.2216206]
[1750639894764,24.69122904,2250.5,2250.4,0.2216206]
[1750639894950,24.69092275,2250.5,2250.4,0.2216206]
[1750639895151,0.8303,2249.9,2248.9,0.8348]
[1750639895371,20.499,2249.8,2248.9,0.8348]
[1750639895987,20.499,2249.8,2249.0,0.0579]
[1750639896202,20.499,2249.8,2249.0,0.94826934]
[1750639896409,10.2346436,2249.7,2249.0,0.0579]
[1750639896702,9.819,2249.7,2249.0,0.0579]
[1750639898089,9.819,2249.6,2249.0,0.0579]